fUSD/lending_fUSD_20250216
["ID","MTS","AMOUNT","RATE_DAILY","PERIOD"]
[353298164,1739742671132,-500.0,0.0001145,2]
[353298165,1739742671143,-1208.65,0.0001145,2]
[353298166,1739742671153,-1605.62,0.0001145,2]
[353298167,1739742671165,-2077.86,0.0001145,2]
[353298168,1739742671177,-1142.3,0.0001145,2]
[353298169,1739742671187,-1876.41,0.0001145,2]
[353298170,1739742671197,-553.47,0.0001145,2]
[353298171,1739742671206,-1626.88,0.0001145,2]
[353298172,1739742671216,-1146.64,0.0001145,2]
[353298173,1739742671226,-500.0,0.00011451,2]
[353298174,1739742671235,-500.0,0.00011451,2]
[353298175,1739742671245,-500.0,0.00011451,2]
[353298176,1739742671256,-151.0,0.00011452,2]
[353298177,1739742671266,-151.0,0.00011452,2]
[353298178,1739742671275,-500.0,0.00011452,2]
[353298179,1739742671285,-500.0,0.00011452,2]
[353298180,1739742671295,-500.0,0.00011452,2]
[353298181,1739742671305,-1200.0,0.00011452,2]
[353298182,1739742671316,-500.0,0.00011452,2]
[353298183,1739742671325,-500.0,0.00011452,2]
[353298184,1739742671336,-500.0,0.00011452,2]
[353298185,1739742671345,-236.70464001,0.00011452,2]
[353298186,1739742671355,-500.0,0.00011452,2]
[353298187,1739742671365,-500.0,0.00011452,2]
[353298188,1739742671374,-500.0,0.00011452,2]
[353298189,1739742671383,-500.0,0.00011452,2]
[353298190,1739742671393,-500.0,0.00011452,2]
[353298191,1739742671402,-500.0,0.00011452,2]
[353298192,1739742671411,-589.74,0.00011452,2]
[353298193,1739742671421,-500.0,0.00011452,2]
[353298194,1739742671431,-500.0,0.00011452,2]
[353298195,1739742671440,-500.0,0.00011452,2]
[353298196,1739742671449,-500.0,0.00011452,2]
[353298197,1739742671459,-500.0,0.00011452,2]
[353298198,1739742671468,-500.0,0.00011452,2]
[353298199,1739742671478,-500.0,0.00011452,2]
[353298200,1739742671488,-500.0,0.00011452,2]
[353298201,1739742671499,-500.0,0.00011452,2]
[353298202,1739742671508,-500.0,0.00011452,2]
[353298203,1739742671517,-500.0,0.00011452,2]
[353298204,1739742671527,-500.0,0.00011452,2]
[353298205,1739742671537,-500.0,0.00011452,2]
[353298206,1739742671546,-500.0,0.00011452,2]
[353298207,1739742671556,-500.0,0.00011452,2]
[353298208,1739742671566,-500.0,0.00011452,2]
[353298209,1739742671576,-500.0,0.00011452,2]
[353298210,1739742671585,-500.0,0.00011452,2]
[353298211,1739742671595,-500.0,0.00011452,2]
[353298212,1739742671605,-500.0,0.00011452,2]
[353298213,1739742671614,-500.0,0.00011452,2]
[353298214,1739742671623,-588.54,0.00011452,2]
[353298215,1739742671633,-500.0,0.00011452,2]
[353298216,1739742671643,-527.23,0.00011452,2]
[353298217,1739742671653,-500.0,0.00011452,2]
[353298218,1739742671663,-500.0,0.00011452,2]
[353298219,1739742671672,-500.0,0.00011452,2]
[353298220,1739742671682,-500.0,0.00011452,2]
[353298221,1739742671692,-600.0,0.00011452,2]
[353298222,1739742671702,-500.0,0.00011452,2]
[353298223,1739742671711,-500.0,0.00011452,2]
[353298224,1739742671721,-500.0,0.00011452,2]
[353298225,1739742671731,-773.53,0.00011452,2]
[353298226,1739742671743,-500.0,0.00011452,2]
[353298227,1739742671752,-629.01,0.00011452,2]
[353298228,1739742671762,-500.0,0.00011452,2]
[353298229,1739742671772,-500.0,0.00011452,2]
[353298230,1739742671781,-545.39,0.00011452,2]
[353298231,1739742671790,-581.66,0.00011452,2]
[353298232,1739742671800,-500.0,0.00011452,2]
[353298233,1739742671809,-525.55,0.00011452,2]
[353298234,1739742671819,-500.0,0.00011452,2]
[353298235,1739742671829,-500.0,0.00011452,2]
[353298236,1739742671839,-500.0,0.00011452,2]
[353298237,1739742671849,-500.0,0.00011452,2]
[353298238,1739742671859,-804.84,0.00011452,2]
[353298239,1739742671869,-500.0,0.00011452,2]
[353298240,1739742671881,-500.0,0.00011452,2]
[353298241,1739742671891,-982.12,0.00011452,2]
[353298242,1739742671901,-500.0,0.00011452,2]
[353298243,1739742671912,-500.0,0.00011452,2]
[353298244,1739742671923,-500.0,0.00011452,2]
[353298245,1739742671933,-500.0,0.00011452,2]
[353298246,1739742671943,-500.0,0.00011452,2]
[353298247,1739742671953,-500.0,0.00011452,2]
[353298248,1739742671962,-500.0,0.00011452,2]
[353298249,1739742671972,-565.07,0.00011452,2]
[353298250,1739742671983,-500.0,0.00011452,2]
[353298251,1739742671992,-1208.65,0.00011452,2]
[353298252,1739742672002,-500.0,0.00011452,2]
[353298253,1739742672011,-500.0,0.00011452,2]
[353298254,1739742672021,-500.0,0.00011452,2]
[353298255,1739742672031,-855.1,0.00011452,2]
[353298256,1739742672040,-597.45,0.00011452,2]
[353298257,1739742672050,-500.0,0.00011452,2]
[353298258,1739742672059,-1108.48,0.00011452,2]
[353298259,1739742672069,-570.47,0.00011452,2]
[353298260,1739742672130,-500.0,0.00011452,2]
[353298261,1739742672141,-500.0,0.00011452,2]
[353298262,1739742672150,-1106.27,0.00011452,2]
[353298263,1739742672160,-500.0,0.00011452,2]
[353298264,1739742672169,-500.0,0.00011452,2]
[353298265,1739742672179,-500.0,0.00011452,2]
[353298266,1739742672188,-877.71,0.00011452,2]
[353298267,1739742672197,-156.075971,0.00011452,2]
[353298268,1739742672206,-500.0,0.00011452,2]
[353298269,1739742672215,-500.0,0.00011452,2]
[353298270,1739742672224,-726.09,0.00011452,2]
[353298271,1739742672233,-541.85,0.00011452,2]
[353298272,1739742672242,-500.0,0.00011452,2]
[353298273,1739742672252,-1071.49,0.00011452,2]
[353298274,1739742672261,-500.0,0.00011452,2]
[353298275,1739742672270,-749.73,0.00011452,2]
[353298276,1739742672279,-767.54,0.00011452,2]
[353298277,1739742672288,-726.53,0.00011452,2]
[353298278,1739742672297,-500.0,0.00011452,2]
[353298279,1739742672306,-500.0,0.00011452,2]
[353298280,1739742672315,-500.0,0.00011452,2]
[353298281,1739742672325,-684.820222,0.00011452,2]
[353298282,1739742672334,-580.47,0.00011452,2]
[353298283,1739742672344,-587.22,0.00011452,2]
[353298284,1739742672353,-500.0,0.00011452,2]
[353298285,1739742672362,-500.0,0.00011452,2]
[353298286,1739742672371,-500.0,0.00011452,2]
[353298287,1739742672380,-500.0,0.00011452,2]
[353298288,1739742672389,-500.0,0.00011452,2]
[353298289,1739742672398,-987.579306,0.00011452,2]
[353298290,1739742672407,-500.0,0.00011452,2]
[353298291,1739742672417,-500.0,0.00011452,2]
[353298292,1739742672427,-500.0,0.00011452,2]
[353298293,1739742672436,-500.0,0.00011452,2]
[353298294,1739742672446,-500.0,0.00011452,2]
[353298295,1739742672455,-500.0,0.00011452,2]
[353298296,1739742672464,-500.0,0.00011452,2]
[353298297,1739742672474,-500.0,0.00011452,2]
[353298298,1739742672483,-500.0,0.00011452,2]
[353298299,1739742672492,-532.63,0.00011452,2]
[353298300,1739742672501,-518.7,0.00011452,2]
[353298301,1739742672511,-500.0,0.00011452,2]
[353298302,1739742672520,-500.0,0.00011452,2]
[353298303,1739742672529,-508.32,0.00011452,2]
[353298304,1739742672538,-500.0,0.00011452,2]
[353298305,1739742672547,-500.0,0.00011452,2]
[353298306,1739742672556,-1320.12,0.00011452,2]
[353298307,1739742672565,-500.0,0.00011452,2]
[353298308,1739742672574,-500.0,0.00011452,2]
[353298309,1739742672583,-610.47,0.00011452,2]
[353298310,1739742672592,-500.0,0.00011452,2]
[353298311,1739742672601,-500.0,0.00011452,2]
[353298312,1739742672610,-500.0,0.00011452,2]
[353298313,1739742672620,-603.88,0.00011452,2]
[353298314,1739742672629,-500.0,0.00011452,2]
[353298315,1739742672637,-930.63,0.00011452,2]
[353298316,1739742672646,-836.2,0.00011452,2]
[353298317,1739742672655,-500.0,0.00011452,2]
[353298318,1739742672664,-500.0,0.00011452,2]
[353298319,1739742672674,-712.78,0.00011452,2]
[353298320,1739742672683,-500.0,0.00011452,2]
[353298321,1739742672692,-500.0,0.00011452,2]
[353298322,1739742672700,-500.0,0.00011452,2]
[353298323,1739742672709,-500.0,0.00011452,2]
[353298324,1739742672718,-500.0,0.00011452,2]
[353298325,1739742672727,-999.98,0.00011452,2]
[353298326,1739742672736,-843.76,0.00011452,2]
[353298327,1739742672745,-500.0,0.00011452,2]
[353298328,1739742672754,-863.25,0.00011452,2]
[353298329,1739742672763,-1040.19,0.00011452,2]
[353298330,1739742672772,-500.0,0.00011452,2]
[353298331,1739742672781,-841.54,0.00011452,2]
[353298332,1739742672791,-500.0,0.00011452,2]
[353298333,1739742672800,-500.0,0.00011452,2]
[353298334,1739742672809,-565.47,0.00011452,2]
[353298335,1739742672818,-854.5,0.00011452,2]
[353298336,1739742672827,-500.0,0.00011452,2]
[353298337,1739742672836,-500.0,0.00011452,2]
[353298338,1739742672845,-500.0,0.00011452,2]
[353298339,1739742672854,-839.28,0.00011452,2]
[353298340,1739742672863,-500.0,0.00011452,2]
[353298341,1739742672872,-500.0,0.00011452,2]
[353298342,1739742672881,-500.0,0.00011452,2]
[353298343,1739742672890,-1102.11,0.00011452,2]
[353298344,1739742672899,-500.0,0.00011452,2]
[353298345,1739742672908,-500.0,0.00011452,2]
[353298346,1739742672916,-1120.48,0.00011452,2]
[353298347,1739742672926,-666.2,0.00011452,2]
[353298348,1739742672935,-500.0,0.00011452,2]
[353298349,1739742672945,-500.0,0.00011452,2]
[353298350,1739742672954,-500.0,0.00011452,2]
[353298351,1739742672963,-701.22,0.00011452,2]
[353298352,1739742672972,-500.0,0.00011452,2]
[353298353,1739742672981,-500.0,0.00011452,2]
[353298354,1739742672990,-500.0,0.00011452,2]
[353298355,1739742672998,-500.0,0.00011452,2]
[353298356,1739742673008,-500.0,0.00011452,2]
[353298357,1739742673017,-500.0,0.00011452,2]
[353298358,1739742673026,-500.0,0.00011452,2]
[353298359,1739742673035,-500.0,0.00011452,2]
[353298360,1739742673045,-500.0,0.00011452,2]
[353298361,1739742673055,-730.12,0.00011452,2]
[353298362,1739742673064,-247.67365833,0.00011452,2]
[353298363,1739742673073,-500.0,0.00011452,2]
[353298364,1739742673082,-500.0,0.00011452,2]
[353298365,1739742673092,-500.0,0.00011452,2]
[353298366,1739742673105,-691.18,0.00011452,2]
[353298367,1739742673114,-959.53,0.00011452,2]
[353298368,1739742673124,-500.0,0.00011452,2]
[353298369,1739742673133,-500.0,0.00011452,2]
[353298370,1739742673144,-1279.74,0.00011452,2]
[353298371,1739742673154,-500.0,0.00011452,2]
[353298372,1739742673163,-500.0,0.00011452,2]
[353298373,1739742673173,-610.6,0.00011452,2]
[353298374,1739742673183,-1064.34,0.00011452,2]
[353298375,1739742673192,-684.81,0.00011452,2]
[353298376,1739742673201,-515.12182078,0.00011452,2]
[353298377,1739742673210,-500.0,0.00011452,2]
[353298378,1739742673220,-500.0,0.00011452,2]
[353298379,1739742673230,-500.0,0.00011452,2]
[353298380,1739742673240,-948.86,0.00011452,2]
[353298381,1739742673249,-500.0,0.00011452,2]
[353298382,1739742673258,-500.0,0.00011452,2]
[353298383,1739742673267,-1205.36,0.00011452,2]
[353298384,1739742673277,-500.0,0.00011452,2]
[353298385,1739742673286,-2644.03,0.00011452,2]
[353298386,1739742673295,-845.2,0.00011452,2]
[353298387,1739742673304,-500.0,0.00011452,2]
[353298388,1739742673313,-1299.48,0.00011452,2]
[353298389,1739742673322,-500.0,0.00011452,2]
[353298390,1739742673331,-2569.33,0.00011452,2]
[353298391,1739742673340,-500.0,0.00011452,2]
[353298392,1739742673350,-500.0,0.00011452,2]
[353298393,1739742673359,-1215.7,0.00011452,2]
[353298394,1739742673369,-500.0,0.00011452,2]
[353298395,1739742673378,-500.0,0.00011452,2]
[353298396,1739742673387,-597.66,0.00011452,2]
[353298397,1739742673396,-500.0,0.00011452,2]
[353298398,1739742673405,-500.0,0.00011452,2]
[353298399,1739742673415,-500.0,0.00011452,2]
[353298400,1739742673426,-500.0,0.00011452,2]
[353298401,1739742673435,-2101.67,0.00011452,2]
[353298402,1739742673444,-664.4,0.00011452,2]
[353298403,1739742673453,-1077.31,0.00011452,2]
[353298404,1739742673462,-500.0,0.00011452,2]
[353298405,1739742673471,-500.0,0.00011452,2]
[353298406,1739742673481,-935.69,0.00011452,2]
[353298407,1739742673490,-661.83,0.00011452,2]
[353298408,1739742673499,-1106.58,0.00011452,2]
[353298409,1739742673508,-500.0,0.00011452,2]
[353298410,1739742673518,-1835.67,0.00011452,2]
[353298411,1739742673527,-2255.62,0.00011452,2]
[353298412,1739742673536,-730.5,0.00011452,2]
[353298413,1739742673545,-500.0,0.00011452,2]
[353298414,1739742673554,-770.15,0.00011452,2]
[353298415,1739742673563,-1638.39,0.00011452,2]
[353298416,1739742673573,-500.0,0.00011452,2]
[353298417,1739742673582,-578.74,0.00011452,2]
[353298418,1739742673590,-1003.64,0.00011452,2]
[353298419,1739742673600,-500.0,0.00011452,2]
[353298420,1739742673609,-500.0,0.00011452,2]
[353298421,1739742673618,-791.01,0.00011452,2]
[353298422,1739742673627,-1650.35,0.00011452,2]
[353298423,1739742673637,-1438.47,0.00011452,2]
[353298424,1739742673646,-500.0,0.00011452,2]
[353298425,1739742673656,-500.0,0.00011452,2]
[353298426,1739742673666,-500.0,0.00011452,2]
[353298427,1739742673677,-500.0,0.00011452,2]
[353298428,1739742673687,-500.0,0.00011452,2]
[353298429,1739742673698,-1575.58,0.00011452,2]
[353298430,1739742673709,-1536.64,0.00011452,2]
[353298431,1739742673718,-687.89,0.00011452,2]
[353298432,1739742673728,-500.0,0.00011452,2]
[353298433,1739742673737,-1036.62,0.00011452,2]
[353298434,1739742673749,-810.05,0.00011452,2]
[353298435,1739742673761,-500.0,0.00011452,2]
[353298436,1739742673772,-1605.64,0.00011452,2]
[353298437,1739742673784,-500.0,0.00011452,2]
[353298438,1739742673795,-500.0,0.00011452,2]
[353298439,1739742673807,-1465.61,0.00011452,2]
[353298440,1739742673817,-500.0,0.00011452,2]
[353298441,1739742673828,-500.0,0.00011452,2]
[353298442,1739742673838,-1869.66,0.00011452,2]
[353298443,1739742673848,-500.0,0.00011452,2]
[353298444,1739742673860,-2363.97,0.00011452,2]
[353298445,1739742673871,-946.33,0.00011452,2]
[353298446,1739742673882,-898.03,0.00011452,2]
[353298447,1739742673892,-500.0,0.00011452,2]
[353298448,1739742673902,-500.0,0.00011452,2]
[353298449,1739742673913,-790.18,0.00011452,2]
[353298450,1739742673923,-5281.57,0.00011452,2]
[353298451,1739742673932,-500.0,0.00011452,2]
[353298452,1739742673941,-1497.17,0.00011452,2]
[353298453,1739742673951,-500.0,0.00011452,2]
[353298454,1739742673961,-955.64,0.00011452,2]
[353298455,1739742673972,-1351.49,0.00011452,2]
[353298456,1739742673981,-1462.67,0.00011452,2]
[353298457,1739742673992,-522.19,0.00011452,2]
[353298458,1739742674002,-500.0,0.00011452,2]
[353298459,1739742674012,-1393.39,0.00011452,2]
[353298460,1739742674023,-918.71,0.00011452,2]
[353298461,1739742674034,-1445.68,0.00011452,2]
[353298462,1739742674045,-500.0,0.00011452,2]
[353298463,1739742674055,-500.0,0.00011452,2]
[353298464,1739742674064,-1262.94,0.00011452,2]
[353298465,1739742674074,-1096.78,0.00011452,2]
[353298466,1739742674084,-866.87,0.00011452,2]
[353298467,1739742674097,-500.0,0.00011452,2]
[353298468,1739742674107,-921.5,0.00011452,2]
[353298469,1739742674117,-500.0,0.00011452,2]
[353298470,1739742674127,-1703.44,0.00011452,2]
[353298471,1739742674137,-817.33,0.00011452,2]
[353298472,1739742674147,-1765.29,0.00011452,2]
[353298473,1739742674158,-563.98,0.00011452,2]
[353298474,1739742674168,-500.0,0.00011452,2]
[353298475,1739742674180,-500.0,0.00011452,2]
[353298476,1739742674190,-1077.46,0.00011452,2]
[353298477,1739742674200,-500.0,0.00011452,2]
[353298478,1739742674209,-797.83,0.00011452,2]
[353298479,1739742674220,-2045.9,0.00011452,2]
[353298480,1739742674231,-500.0,0.00011452,2]
[353298481,1739742674240,-1027.79,0.00011452,2]
[353298482,1739742674252,-562.48,0.00011452,2]
[353298483,1739742674262,-919.02,0.00011452,2]
[353298484,1739742674273,-2070.46,0.00011452,2]
[353298485,1739742674283,-500.0,0.00011452,2]
[353298486,1739742674293,-500.0,0.00011452,2]
[353298487,1739742674304,-1269.5,0.00011452,2]
[353298488,1739742674314,-1764.9,0.00011452,2]
[353298489,1739742674324,-1920.38,0.00011452,2]
[353298490,1739742674333,-594.15,0.00011452,2]
[353298491,1739742674343,-1514.45,0.00011452,2]
[353298492,1739742674352,-3942.71,0.00011452,2]
[353298493,1739742674362,-500.0,0.00011452,2]
[353298494,1739742674371,-500.0,0.00011452,2]
[353298495,1739742674382,-500.0,0.00011452,2]
[353298496,1739742674392,-500.0,0.00011452,2]
[353298497,1739742674402,-518.38,0.00011452,2]
[353298498,1739742674412,-2006.59,0.00011452,2]
[353298499,1739742674422,-500.0,0.00011452,2]
[353298500,1739742674431,-739.81,0.00011452,2]
[353298501,1739742674441,-500.0,0.00011452,2]
[353298502,1739742674451,-1277.56,0.00011452,2]
[353298503,1739742674461,-659.07,0.00011452,2]
[353298504,1739742674471,-676.16,0.00011452,2]
[353298505,1739742674481,-500.0,0.00011452,2]
[353298506,1739742674491,-616.55,0.00011452,2]
[353298507,1739742674500,-500.0,0.00011452,2]
[353298508,1739742674510,-500.0,0.00011452,2]
[353298509,1739742674520,-500.0,0.00011452,2]
[353298510,1739742674529,-662.98,0.00011452,2]
[353298511,1739742674539,-681.63,0.00011452,2]
[353298512,1739742674549,-500.0,0.00011452,2]
[353298513,1739742674561,-1928.42,0.00011452,2]
[353298514,1739742674571,-768.53,0.00011452,2]
[353298515,1739742674582,-1472.35,0.00011452,2]
[353298516,1739742674592,-500.0,0.00011452,2]
[353298517,1739742674602,-500.0,0.00011452,2]
[353298518,1739742674612,-1085.08,0.00011452,2]
[353298519,1739742674621,-1097.37,0.00011452,2]
[353298520,1739742674631,-1532.75,0.00011452,2]
[353298521,1739742674641,-1575.69,0.00011452,2]
[353298522,1739742674651,-800.35,0.00011452,2]
[353298523,1739742674661,-2696.32,0.00011452,2]
[353298524,1739742674672,-1998.61,0.00011452,2]
[353298525,1739742674682,-601.4,0.00011452,2]
[353298526,1739742674692,-846.39,0.00011452,2]
[353298527,1739742674702,-500.0,0.00011452,2]
[353298528,1739742674712,-1249.29,0.00011452,2]
[353298529,1739742674723,-500.0,0.00011452,2]
[353298530,1739742674733,-1062.89,0.00011452,2]
[353298531,1739742674743,-500.0,0.00011452,2]
[353298532,1739742674753,-500.0,0.00011452,2]
[353298533,1739742674764,-2010.66,0.00011452,2]
[353298534,1739742674773,-1292.55,0.00011452,2]
[353298535,1739742674784,-500.0,0.00011452,2]
[353298536,1739742674795,-1786.66,0.00011452,2]
[353298537,1739742674805,-500.0,0.00011452,2]
[353298538,1739742674815,-718.28,0.00011452,2]
[353298539,1739742674824,-500.0,0.00011452,2]
[353298540,1739742674834,-500.0,0.00011452,2]
[353298541,1739742674844,-505.9,0.00011452,2]
[353298542,1739742674855,-500.0,0.00011452,2]
[353298543,1739742674865,-2309.43,0.00011452,2]
[353298544,1739742674875,-285.53170598,0.00011452,2]
[353298545,1739742674885,-500.0,0.00011452,2]
[353298546,1739742674895,-841.82,0.00011452,2]
[353298547,1739742674906,-500.0,0.00011452,2]
[353298548,1739742674916,-1004.9,0.00011452,2]
[353298549,1739742674927,-500.0,0.00011452,2]
[353298550,1739742674937,-1051.25,0.00011452,2]
[353298551,1739742674948,-500.0,0.00011452,2]
[353298552,1739742674959,-1465.9,0.00011452,2]
[353298553,1739742674969,-500.0,0.00011452,2]
[353298554,1739742674979,-1681.66,0.00011452,2]
[353298555,1739742674989,-500.0,0.00011452,2]
[353298556,1739742675000,-918.07,0.00011452,2]
[353298557,1739742675011,-1609.77,0.00011452,2]
[353298558,1739742675020,-500.0,0.00011452,2]
[353298559,1739742675030,-1735.61,0.00011452,2]
[353298560,1739742675040,-500.0,0.00011452,2]
[353298561,1739742675050,-500.0,0.00011452,2]
[353298562,1739742675060,-2197.25,0.00011452,2]
[353298563,1739742675070,-500.0,0.00011452,2]
[353298564,1739742675080,-500.0,0.00011452,2]
[353298565,1739742675090,-500.0,0.00011452,2]
[353298566,1739742675102,-795.13,0.00011452,2]
[353298567,1739742675112,-513.81,0.00011452,2]
[353298568,1739742675122,-685.8,0.00011452,2]
[353298569,1739742675131,-1539.81,0.00011452,2]
[353298570,1739742675141,-4849.07,0.00011452,2]
[353298571,1739742675151,-500.0,0.00011452,2]
[353298572,1739742675161,-500.0,0.00011452,2]
[353298573,1739742675173,-256.02817852,0.00011452,2]
[353298574,1739742675183,-1017.77578108,0.00011497,2]
[353298575,1739742675193,-880.0,0.00011507,2]
[353298576,1739742675202,-1551.18,0.00011507,2]
[353298577,1739742675212,-775.76,0.00011507,2]
[353298578,1739742675223,-2751.0,0.00011507,2]
[353298579,1739742675233,-200.0,0.00011514,2]
[353298580,1739742675243,-5334.59033752,0.00011516,2]
[353298581,1739742675253,-1731.88985604,0.00011516,2]
[353298582,1739742675263,-409.2296984,0.00011516,2]
[353298583,1739742675274,-691.17045868,0.00011524,2]
[353298584,1739742675284,-740.9181336,0.00011526,2]
[353298585,1739742675294,-1471.49,0.00011532,2]
[353298586,1739742675304,-922.85,0.00011532,2]
[353298587,1739742675314,-1666.95,0.00011532,2]
[353298588,1739742675324,-500.0,0.00011532,2]
[353298589,1739742675336,-1208.65,0.00011532,2]
[353298590,1739742675346,-1605.62,0.00011532,2]
[353298591,1739742675356,-2077.86,0.00011532,2]
[353298592,1739742675366,-1142.3,0.00011532,2]
[353298593,1739742675376,-1876.41,0.00011532,2]
[353298594,1739742675387,-553.47,0.00011532,2]
[353298595,1739742675397,-1626.88,0.00011532,2]
[353298596,1739742675407,-1146.64,0.00011532,2]
[353298597,1739742675417,-300.0,0.00011533,2]
[353298598,1739742675430,-263.34525561,0.00011533,2]
[353298599,1739742675440,-500.0,0.00011533,2]
[353298600,1739742675449,-500.0,0.00011533,2]
[353298601,1739742675459,-500.0,0.00011534,2]
[353298602,1739742675469,-500.0,0.00011534,2]
[353298603,1739742675479,-500.0,0.00011534,2]
[353298604,1739742675489,-500.0,0.00011534,2]
[353298605,1739742675499,-537.42,0.00011534,2]
[353298606,1739742675509,-500.0,0.00011534,2]
[353298607,1739742675518,-500.0,0.00011534,2]
[353298608,1739742675527,-500.0,0.00011534,2]
[353298609,1739742675537,-500.0,0.00011534,2]
[353298610,1739742675546,-500.0,0.00011534,2]
[353298611,1739742675556,-562.16830906,0.00011534,2]
[353298612,1739742675566,-600.62,0.00011534,2]
[353298613,1739742675576,-500.0,0.00011534,2]
[353298614,1739742675586,-500.0,0.00011534,2]
[353298615,1739742675596,-500.0,0.00011534,2]
[353298616,1739742675607,-500.0,0.00011534,2]
[353298617,1739742675617,-500.0,0.00011534,2]
[353298618,1739742675626,-500.0,0.00011534,2]
[353298619,1739742675636,-500.0,0.00011534,2]
[353298620,1739742675646,-500.0,0.00011534,2]
[353298621,1739742675656,-500.0,0.00011534,2]
[353298622,1739742675666,-500.0,0.00011534,2]
[353298623,1739742675676,-500.0,0.00011534,2]
[353298624,1739742675687,-500.0,0.00011534,2]
[353298625,1739742675696,-500.0,0.00011534,2]
[353298626,1739742675706,-500.0,0.00011534,2]
[353298627,1739742675716,-500.0,0.00011534,2]
[353298628,1739742675726,-500.0,0.00011534,2]
[353298629,1739742675736,-500.0,0.00011534,2]
[353298630,1739742675746,-500.0,0.00011534,2]
[353298631,1739742675755,-547.12923672,0.00011534,2]
[353298632,1739742675764,-588.54,0.00011534,2]
[353298633,1739742675774,-527.23,0.00011534,2]
[353298634,1739742675785,-500.0,0.00011534,2]
[353298635,1739742675796,-500.0,0.00011534,2]
[353298636,1739742675807,-500.0,0.00011534,2]
[353298637,1739742675818,-600.0,0.00011534,2]
[353298638,1739742675831,-500.0,0.00011534,2]
[353298639,1739742675841,-500.0,0.00011534,2]
[353298640,1739742675851,-773.53,0.00011534,2]
[353298641,1739742675862,-500.0,0.00011534,2]
[353298642,1739742676048,-629.01,0.00011534,2]
[353298643,1739742676059,-500.0,0.00011534,2]
[353298644,1739742676069,-500.0,0.00011534,2]
[353298645,1739742676079,-545.39,0.00011534,2]
[353298646,1739742676089,-581.66,0.00011534,2]
[353298647,1739742676102,-500.0,0.00011534,2]
[353298648,1739742676112,-525.55,0.00011534,2]
[353298649,1739742676121,-500.0,0.00011534,2]
[353298650,1739742676130,-500.0,0.00011534,2]
[353298651,1739742676140,-500.0,0.00011534,2]
[353298652,1739742676151,-546.02501028,0.00011534,2]
[353298653,1739742676161,-804.84,0.00011534,2]
[353298654,1739742676171,-500.0,0.00011534,2]
[353298655,1739742676183,-500.0,0.00011534,2]
[353298656,1739742676193,-982.12,0.00011534,2]
[353298657,1739742676202,-500.0,0.00011534,2]
[353298658,1739742676212,-500.0,0.00011534,2]
[353298659,1739742676222,-500.0,0.00011534,2]
[353298660,1739742676232,-500.0,0.00011534,2]
[353298661,1739742676241,-500.0,0.00011534,2]
[353298662,1739742676251,-500.0,0.00011534,2]
[353298663,1739742676260,-500.0,0.00011534,2]